fUSD/lending_fUSD_20240301
["ID","MTS","AMOUNT","RATE_DAILY","PERIOD"]
[316047700,1709336073015,-910.45,0.00022244,2]
[316047701,1709336073038,-1714.0,0.00022244,2]
[316047702,1709336073060,-500.0,0.00022244,2]
[316047703,1709336073084,-500.0,0.00022244,2]
[316047704,1709336073106,-500.0,0.00022244,2]
[316047705,1709336073129,-500.0,0.00022244,2]
[316047706,1709336073152,-2482.98,0.00022244,2]
[316047707,1709336073174,-1347.02,0.00022244,2]
[316047708,1709336073196,-2051.01,0.00022244,2]
[316047709,1709336073218,-500.0,0.00022244,2]
[316047710,1709336073241,-500.0,0.00022244,2]
[316047711,1709336073263,-568.29,0.00022244,2]
[316047712,1709336073290,-500.0,0.00022244,2]
[316047713,1709336073314,-1549.43,0.00022244,2]
[316047714,1709336073336,-1784.11,0.00022244,2]
[316047715,1709336073360,-622.48,0.00022244,2]
[316047716,1709336073385,-831.2,0.00022244,2]
[316047717,1709336073410,-525.1,0.00022244,2]
[316047718,1709336073433,-500.0,0.00022244,2]
[316047719,1709336073458,-2729.73,0.00022244,2]
[316047720,1709336073482,-762.43,0.00022244,2]
[316047721,1709336073505,-1022.8,0.00022244,2]
[316047722,1709336073529,-2464.71,0.00022244,2]
[316047723,1709336073552,-1293.2,0.00022244,2]
[316047724,1709336073576,-599.07,0.00022244,2]
[316047725,1709336073600,-315.47202859,0.00022244,2]
[316047726,1709336073624,-1446.77,0.00022244,2]
[316047727,1709336073647,-1132.54,0.00022244,2]
[316047728,1709336073670,-500.0,0.00022244,2]
[316047729,1709336073693,-500.0,0.00022244,2]
[316047730,1709336073716,-1624.81,0.00022244,2]
[316047731,1709336073739,-2039.62,0.00022244,2]
[316047732,1709336073761,-2473.77,0.00022244,2]
[316047733,1709336073786,-1340.68,0.00022244,2]
[316047734,1709336073808,-500.0,0.00022244,2]
[316047735,1709336073831,-608.61,0.00022244,2]
[316047736,1709336073853,-926.47,0.00022244,2]
[316047737,1709336073876,-616.23,0.00022244,2]
[316047738,1709336073897,-500.0,0.00022244,2]
[316047739,1709336073919,-500.0,0.00022244,2]
[316047740,1709336073941,-183.47814954,0.00022245,2]
[316047741,1709336073964,-369.58254275,0.00022245,2]
[316047742,1709336073991,-500.0,0.00022245,2]
[316047743,1709336074015,-500.0,0.00022245,2]
[316047744,1709336074040,-500.0,0.00022245,2]
[316047745,1709336074064,-500.0,0.00022245,2]
[316047746,1709336074089,-550.0,0.00022245,2]
[316047747,1709336074113,-500.0,0.00022245,2]
[316047748,1709336074138,-500.0,0.00022245,2]
[316047749,1709336074161,-500.0,0.00022245,2]
[316047750,1709336074184,-227.10117013,0.00022245,2]
[316047751,1709336074269,-500.0,0.00022245,2]
[316047752,1709336074294,-500.0,0.00022245,2]
[316047753,1709336074317,-500.0,0.00022245,2]
[316047754,1709336074342,-500.0,0.00022245,2]
[316047755,1709336074366,-500.0,0.00022245,2]
[316047756,1709336074389,-500.0,0.00022245,2]
[316047757,1709336074412,-500.0,0.00022245,2]
[316047758,1709336074434,-494.45399578,0.00022245,2]
[316047759,1709336074457,-465.41258009,0.00022245,2]
[316047760,1709336074480,-500.0,0.00022245,2]
[316047761,1709336074502,-301.69200247,0.00022245,2]
[316047762,1709336074524,-321.96835886,0.00022245,2]
[316047763,1709336074546,-352.27215379,0.00022245,2]
[316047764,1709336074568,-191.74182149,0.00022245,2]
[316047765,1709336074589,-500.0,0.00022246,2]
[316047766,1709336074611,-500.0,0.00022246,2]
[316047767,1709336074634,-500.0,0.00022246,2]
[316047768,1709336074655,-500.0,0.00022246,2]
[316047769,1709336074677,-500.0,0.00022246,2]
[316047770,1709336074699,-500.0,0.00022246,2]
[316047771,1709336074720,-500.0,0.00022246,2]
[316047772,1709336074742,-500.0,0.00022246,2]
[316047773,1709336074764,-177.5154781,0.00022246,2]
[316047774,1709336074785,-500.0,0.00022246,2]
[316047775,1709336074807,-500.0,0.00022246,2]
[316047776,1709336074828,-500.0,0.00022246,2]
[316047777,1709336074850,-650.05,0.00022246,2]
[316047778,1709336074872,-500.0,0.00022246,2]
[316047779,1709336074894,-732.41,0.00022246,2]
[316047780,1709336074915,-500.0,0.00022246,2]
[316047781,1709336074937,-500.0,0.00022246,2]
[316047782,1709336074960,-500.0,0.00022246,2]
[316047783,1709336074983,-500.0,0.00022246,2]
[316047784,1709336075004,-500.0,0.00022246,2]
[316047785,1709336075029,-521.2514097,0.00022246,2]
[316047786,1709336075054,-500.0,0.00022246,2]
[316047787,1709336075078,-500.0,0.00022246,2]
[316047788,1709336075101,-500.0,0.00022246,2]
[316047789,1709336075123,-500.0,0.00022246,2]
[316047790,1709336075146,-681.2,0.00022246,2]
[316047791,1709336075170,-516.40151081,0.00022246,2]
[316047792,1709336075193,-500.0,0.00022246,2]
[316047793,1709336075218,-500.0,0.00022246,2]
[316047794,1709336075243,-500.0,0.00022246,2]
[316047795,1709336075267,-500.0,0.00022246,2]
[316047796,1709336075301,-500.0,0.00022246,2]
[316047797,1709336075325,-500.0,0.00022246,2]
[316047798,1709336075348,-500.0,0.00022246,2]
[316047799,1709336075372,-500.0,0.00022246,2]
[316047800,1709336075395,-500.0,0.00022246,2]
[316047801,1709336075418,-500.0,0.00022246,2]
[316047802,1709336075440,-500.0,0.00022246,2]
[316047803,1709336075464,-500.0,0.00022246,2]
[316047804,1709336075486,-500.0,0.00022246,2]
[316047805,1709336075508,-174.9,0.00022246,2]
[316047806,1709336075531,-500.0,0.00022246,2]
[316047807,1709336075553,-500.0,0.00022246,2]
[316047808,1709336075576,-500.0,0.00022246,2]
[316047809,1709336075599,-500.0,0.00022246,2]
[316047810,1709336075622,-500.0,0.00022246,2]
[316047811,1709336075645,-500.0,0.00022246,2]
[316047812,1709336075668,-500.0,0.00022246,2]
[316047813,1709336075691,-500.0,0.00022246,2]
[316047814,1709336075716,-500.0,0.00022246,2]
[316047815,1709336075738,-500.0,0.00022246,2]
[316047816,1709336075760,-500.0,0.00022246,2]
[316047817,1709336075784,-500.0,0.00022246,2]
[316047818,1709336075806,-302.23,0.00022246,2]
[316047819,1709336075828,-500.0,0.00022246,2]
[316047820,1709336075854,-500.0,0.00022246,2]
[316047821,1709336075876,-500.0,0.00022246,2]
[316047822,1709336075901,-467.07366665,0.00022246,2]
[316047823,1709336075923,-500.0,0.00022246,2]
[316047824,1709336075946,-500.0,0.00022246,2]
[316047825,1709336075970,-500.0,0.00022246,2]
[316047826,1709336075992,-500.0,0.00022246,2]
[316047827,1709336076015,-500.0,0.00022246,2]
[316047828,1709336076037,-500.0,0.00022246,2]
[316047829,1709336076064,-583.17729205,0.00022246,2]
[316047830,1709336076088,-500.0,0.00022246,2]
[316047831,1709336076110,-500.0,0.00022246,2]
[316047832,1709336076132,-500.0,0.00022246,2]
[316047833,1709336076154,-500.0,0.00022246,2]
[316047834,1709336076176,-500.0,0.00022246,2]
[316047835,1709336076198,-500.0,0.00022246,2]
[316047836,1709336076220,-500.0,0.00022246,2]
[316047837,1709336076242,-527.08692111,0.00022246,2]
[316047838,1709336076264,-500.0,0.00022246,2]
[316047839,1709336076290,-550.77,0.00022246,2]
[316047840,1709336076312,-500.0,0.00022246,2]
[316047841,1709336076335,-500.0,0.00022246,2]
[316047842,1709336076357,-500.0,0.00022246,2]
[316047843,1709336076382,-500.0,0.00022246,2]
[316047844,1709336076405,-500.0,0.00022246,2]
[316047845,1709336076428,-500.0,0.00022246,2]
[316047846,1709336076451,-500.0,0.00022246,2]
[316047847,1709336076474,-500.0,0.00022246,2]
[316047848,1709336076498,-500.0,0.00022246,2]
[316047849,1709336076521,-500.0,0.00022246,2]
[316047850,1709336076543,-500.0,0.00022246,2]
[316047851,1709336076566,-500.0,0.00022246,2]
[316047852,1709336076589,-205.18240678,0.00022246,2]
[316047853,1709336076612,-500.0,0.00022246,2]
[316047854,1709336076634,-577.28890005,0.00022246,2]
[316047855,1709336076656,-322.29275375,0.00022246,2]
[316047856,1709336076679,-500.0,0.00022246,2]
[316047857,1709336076703,-500.0,0.00022246,2]
[316047858,1709336076724,-500.0,0.00022246,2]
[316047859,1709336076746,-500.0,0.00022246,2]
[316047860,1709336076768,-500.0,0.00022246,2]
[316047861,1709336076791,-500.0,0.00022246,2]
[316047862,1709336076814,-500.0,0.00022246,2]
[316047863,1709336076837,-500.0,0.00022246,2]
[316047864,1709336076858,-500.0,0.00022246,2]
[316047865,1709336076880,-500.0,0.00022246,2]
[316047866,1709336076901,-500.0,0.00022246,2]
[316047867,1709336076922,-500.0,0.00022246,2]
[316047868,1709336076944,-500.0,0.00022246,2]
[316047869,1709336076966,-500.0,0.00022246,2]
[316047870,1709336076987,-299.60802048,0.00022246,2]
[316047871,1709336077009,-500.0,0.00022246,2]
[316047872,1709336077031,-551.41671801,0.00022246,2]
[316047873,1709336077053,-500.0,0.00022246,2]
[316047874,1709336077075,-500.0,0.00022246,2]
[316047875,1709336077098,-500.0,0.00022246,2]
[316047876,1709336077122,-500.0,0.00022246,2]
[316047877,1709336077144,-500.0,0.00022246,2]
[316047878,1709336077167,-500.0,0.00022246,2]
[316047879,1709336077189,-608.88,0.00022246,2]
[316047880,1709336077211,-500.0,0.00022246,2]
[316047881,1709336077233,-500.0,0.00022246,2]
[316047882,1709336077255,-500.0,0.00022246,2]
[316047883,1709336077279,-500.0,0.00022246,2]
[316047884,1709336077301,-500.0,0.00022246,2]
[316047885,1709336077324,-500.0,0.00022246,2]
[316047886,1709336077346,-500.0,0.00022246,2]
[316047887,1709336077371,-500.0,0.00022246,2]
[316047888,1709336077400,-500.0,0.00022246,2]
[316047889,1709336077426,-500.0,0.00022246,2]
[316047890,1709336077454,-500.0,0.00022246,2]
[316047891,1709336077478,-500.0,0.00022246,2]
[316047892,1709336077502,-500.0,0.00022246,2]
[316047893,1709336077524,-500.0,0.00022246,2]
[316047894,1709336077546,-500.0,0.00022246,2]
[316047895,1709336077569,-500.0,0.00022246,2]
[316047896,1709336077591,-500.0,0.00022246,2]
[316047897,1709336077613,-500.0,0.00022246,2]
[316047898,1709336077635,-500.0,0.00022246,2]
[316047899,1709336077657,-500.0,0.00022246,2]
[316047900,1709336077678,-500.0,0.00022246,2]
[316047901,1709336077700,-500.0,0.00022246,2]
[316047902,1709336077722,-500.0,0.00022246,2]
[316047903,1709336077744,-790.67,0.00022246,2]
[316047904,1709336077883,-500.0,0.00022246,2]
[316047905,1709336077905,-500.0,0.00022246,2]
[316047906,1709336077928,-664.78,0.00022246,2]
[316047907,1709336077950,-500.0,0.00022246,2]
[316047908,1709336077972,-602.59,0.00022246,2]
[316047909,1709336077996,-500.0,0.00022246,2]
[316047910,1709336078019,-500.0,0.00022246,2]
[316047911,1709336078044,-500.0,0.00022246,2]
[316047912,1709336078068,-500.0,0.00022246,2]
[316047913,1709336078092,-500.0,0.00022246,2]
[316047914,1709336078117,-500.0,0.00022246,2]
[316047915,1709336078140,-500.0,0.00022246,2]
[316047916,1709336078163,-500.0,0.00022246,2]
[316047917,1709336078186,-500.0,0.00022246,2]
[316047918,1709336078211,-500.0,0.00022246,2]
[316047919,1709336078235,-500.0,0.00022246,2]
[316047920,1709336078259,-500.0,0.00022246,2]
[316047921,1709336078284,-500.0,0.00022246,2]
[316047922,1709336078309,-763.65,0.00022246,2]
[316047923,1709336078333,-500.0,0.00022246,2]
[316047924,1709336078357,-500.0,0.00022246,2]
[316047925,1709336078383,-500.0,0.00022246,2]
[316047926,1709336078406,-500.0,0.00022246,2]
[316047927,1709336078428,-500.0,0.00022246,2]
[316047928,1709336078452,-700.88,0.00022246,2]
[316047929,1709336078475,-655.56,0.00022246,2]
[316047930,1709336078498,-500.0,0.00022246,2]
[316047931,1709336078522,-1499.61,0.00022246,2]
[316047932,1709336078545,-500.0,0.00022246,2]
[316047933,1709336078567,-500.0,0.00022246,2]
[316047934,1709336078590,-435.52760378,0.00022246,2]
[316047935,1709336078613,-500.0,0.00022246,2]
[316047936,1709336078636,-500.0,0.00022246,2]
[316047937,1709336078660,-1301.42,0.00022246,2]
[316047938,1709336078682,-500.0,0.00022246,2]
[316047939,1709336078705,-808.45,0.00022246,2]
[316047940,1709336078728,-271.25505479,0.00022246,2]
[316047941,1709336078751,-500.0,0.00022246,2]
[316047942,1709336078775,-500.0,0.00022246,2]
[316047943,1709336078798,-500.0,0.00022246,2]
[316047944,1709336078821,-500.0,0.00022246,2]
[316047945,1709336078843,-500.0,0.00022246,2]
[316047946,1709336078866,-161.85935949,0.00022246,2]
[316047947,1709336078888,-500.0,0.00022246,2]
[316047948,1709336078910,-500.0,0.00022246,2]
[316047949,1709336078933,-500.0,0.00022246,2]
[316047950,1709336078955,-500.0,0.00022246,2]
[316047951,1709336078977,-177.10685156,0.00022246,2]
[316047952,1709336079001,-789.98,0.00022246,2]
[316047953,1709336079025,-500.0,0.00022246,2]
[316047954,1709336079049,-500.0,0.00022246,2]
[316047955,1709336079072,-500.0,0.00022246,2]
[316047956,1709336079099,-531.98,0.00022246,2]
[316047957,1709336079122,-601.43,0.00022246,2]
[316047958,1709336079144,-500.0,0.00022246,2]
[316047959,1709336079167,-500.0,0.00022246,2]
[316047960,1709336079189,-500.0,0.00022246,2]
[316047961,1709336079213,-500.0,0.00022246,2]
[316047962,1709336079236,-500.0,0.00022246,2]
[316047963,1709336079258,-500.0,0.00022246,2]
[316047964,1709336079282,-500.0,0.00022246,2]
[316047965,1709336079307,-500.0,0.00022246,2]
[316047966,1709336079330,-500.0,0.00022246,2]
[316047967,1709336079353,-500.0,0.00022246,2]
[316047968,1709336079378,-780.31,0.00022246,2]
[316047969,1709336079402,-626.42,0.00022246,2]
[316047970,1709336079425,-500.0,0.00022246,2]
[316047971,1709336079448,-500.0,0.00022246,2]
[316047972,1709336079472,-239.64065271,0.00022246,2]
[316047973,1709336079496,-500.0,0.00022246,2]
[316047974,1709336079520,-766.78,0.00022246,2]
[316047975,1709336079543,-961.08,0.00022246,2]
[316047976,1709336079566,-500.0,0.00022246,2]
[316047977,1709336079589,-500.0,0.00022246,2]
[316047978,1709336079613,-500.0,0.00022246,2]
[316047979,1709336079636,-500.0,0.00022246,2]
[316047980,1709336079666,-500.0,0.00022246,2]
[316047981,1709336079689,-500.0,0.00022246,2]
[316047982,1709336079712,-1329.35,0.00022246,2]
[316047983,1709336079735,-500.0,0.00022246,2]
[316047984,1709336079757,-500.0,0.00022246,2]
[316047985,1709336079779,-1047.57,0.00022246,2]
[316047986,1709336079802,-500.0,0.00022246,2]
[316047987,1709336079825,-1069.0,0.00022246,2]
[316047988,1709336079850,-500.0,0.00022246,2]
[316047989,1709336079873,-672.59,0.00022246,2]
[316047990,1709336079895,-235.39,0.00022246,2]
[316047991,1709336079918,-500.0,0.00022246,2]
[316047992,1709336079941,-500.0,0.00022246,2]
[316047993,1709336079965,-500.0,0.00022246,2]
[316047994,1709336079987,-500.0,0.00022246,2]
[316047995,1709336080010,-500.0,0.00022246,2]
[316047996,1709336080033,-775.73,0.00022246,2]
[316047997,1709336080056,-1005.83,0.00022246,2]
[316047998,1709336080079,-682.7,0.00022246,2]
[316047999,1709336080102,-500.0,0.00022246,2]
[316048000,1709336080125,-500.0,0.00022246,2]
[316048001,1709336080148,-519.41,0.00022246,2]
[316048002,1709336080171,-500.0,0.00022246,2]
[316048003,1709336080193,-500.0,0.00022246,2]
[316048004,1709336080217,-874.06,0.00022246,2]
[316048005,1709336080239,-500.0,0.00022246,2]
[316048006,1709336080262,-500.0,0.00022246,2]
[316048007,1709336080286,-500.0,0.00022246,2]
[316048008,1709336080309,-500.0,0.00022246,2]
[316048009,1709336080333,-776.83,0.00022246,2]
[316048010,1709336080633,-500.0,0.00022246,2]
[316048011,1709336080656,-514.21,0.00022246,2]
[316048012,1709336080679,-601.96615204,0.00022246,2]
[316048013,1709336080702,-500.0,0.00022246,2]
[316048014,1709336080725,-500.0,0.00022246,2]
[316048015,1709336080747,-500.0,0.00022246,2]
[316048016,1709336080770,-500.0,0.00022246,2]
[316048017,1709336080792,-705.32,0.00022246,2]
[316048018,1709336080815,-500.0,0.00022246,2]
[316048019,1709336080841,-500.0,0.00022246,2]
[316048020,1709336080864,-500.0,0.00022246,2]
[316048021,1709336080886,-924.05,0.00022246,2]
[316048022,1709336080908,-606.65,0.00022246,2]
[316048023,1709336080932,-500.0,0.00022246,2]
[316048024,1709336080954,-500.0,0.00022246,2]
[316048025,1709336080977,-631.7,0.00022246,2]
[316048026,1709336080999,-500.0,0.00022246,2]
[316048027,1709336081021,-500.0,0.00022246,2]
[316048028,1709336081045,-2298.04,0.00022246,2]
[316048029,1709336081069,-500.0,0.00022246,2]
[316048030,1709336081092,-625.0,0.00022246,2]
[316048031,1709336081115,-500.0,0.00022246,2]
[316048032,1709336081140,-500.0,0.00022246,2]
[316048033,1709336081164,-500.0,0.00022246,2]
[316048034,1709336081187,-500.0,0.00022246,2]
[316048035,1709336081212,-5207.94,0.00022246,2]
[316048036,1709336081236,-500.0,0.00022246,2]
[316048037,1709336081259,-500.0,0.00022246,2]
[316048038,1709336081284,-810.99,0.00022246,2]
[316048039,1709336081308,-500.0,0.00022246,2]
[316048040,1709336081332,-500.0,0.00022246,2]
[316048041,1709336081358,-500.0,0.00022246,2]
[316048042,1709336081383,-3024.8,0.00022246,2]
[316048043,1709336081407,-1126.35,0.00022246,2]
[316048044,1709336081431,-7900.35,0.00022246,2]
[316048045,1709336081457,-500.0,0.00022246,2]
[316048046,1709336081481,-672.04,0.00022246,2]
[316048047,1709336081504,-1169.83,0.00022246,2]
[316048048,1709336081530,-7532.36,0.00022246,2]
[316048049,1709336081554,-964.53,0.00022246,2]
[316048050,1709336081578,-500.0,0.00022246,2]
[316048051,1709336081602,-500.0,0.00022246,2]
[316048052,1709336081626,-2424.23,0.00022246,2]
[316048053,1709336081650,-500.0,0.00022246,2]
[316048054,1709336081673,-3015.43,0.00022246,2]
[316048055,1709336081697,-1371.54,0.00022246,2]
[316048056,1709336081721,-500.0,0.00022246,2]
[316048057,1709336081743,-500.0,0.00022246,2]
[316048058,1709336081766,-310.985538,0.00022246,7]
[316048059,1709336081789,-1303.05,0.00022246,2]
[316048060,1709336081812,-4458.95,0.00022246,2]
[316048061,1709336081834,-791.47,0.00022246,2]
[316048062,1709336081856,-500.0,0.00022246,2]
[316048063,1709336081879,-1427.89,0.00022246,2]
[316048064,1709336081902,-500.0,0.00022246,2]
[316048065,1709336081924,-310.985538,0.00022246,7]
[316048066,1709336081948,-500.0,0.00022246,2]
[316048067,1709336081971,-501.172106,0.00022246,7]
[316048068,1709336081993,-500.0,0.00022246,2]
[316048069,1709336082016,-898.93,0.00022246,2]
[316048070,1709336082041,-1648.89,0.00022246,2]
[316048071,1709336082065,-907.94,0.00022246,2]
[316048072,1709336082090,-501.172106,0.00022246,7]
[316048073,1709336082113,-819.19,0.00022246,2]
[316048074,1709336082135,-612.92,0.00022246,2]
[316048075,1709336082158,-500.0,0.00022246,2]
[316048076,1709336082182,-2026.54,0.00022246,2]
[316048077,1709336082205,-500.0,0.00022246,2]
[316048078,1709336082229,-151.0,0.00022246,7]
[316048079,1709336082252,-164.035497,0.00022246,7]
[316048080,1709336082276,-500.0,0.00022246,2]
[316048081,1709336082301,-500.0,0.00022246,2]
[316048082,1709336082324,-500.0,0.00022246,2]
[316048083,1709336082347,-801.81,0.00022246,2]
[316048084,1709336082371,-500.0,0.00022246,2]
[316048085,1709336082395,-500.0,0.00022246,2]
[316048086,1709336082421,-500.0,0.00022246,2]
[316048087,1709336082449,-2884.03,0.00022246,2]
[316048088,1709336082476,-8965.62,0.00022246,2]
[316048089,1709336082499,-187.7625141,0.00022246,2]
[316048090,1709336082523,-505.78,0.00022246,2]
[316048091,1709336082547,-777.57,0.00022246,2]
[316048092,1709336082570,-940.54,0.00022246,2]
[316048093,1709336082597,-500.0,0.00022246,2]
[316048094,1709336082620,-500.0,0.00022246,2]
[316048095,1709336082643,-151.0,0.00022246,7]
[316048096,1709336082667,-1906.19,0.00022246,2]
[316048097,1709336082691,-511.86,0.00022246,2]
[316048098,1709336082716,-500.0,0.00022246,2]
[316048099,1709336082740,-627.61,0.00022246,2]
[316048100,1709336082763,-1713.97,0.00022246,2]
[316048101,1709336082785,-500.0,0.00022246,2]
[316048102,1709336082807,-1496.5,0.00022246,2]
[316048103,1709336082831,-15578.52,0.00022246,2]
[316048104,1709336082855,-932.99,0.00022246,2]
[316048105,1709336082884,-500.0,0.00022246,2]
[316048106,1709336082974,-3986.75,0.00022246,2]
[316048107,1709336083016,-818.08,0.00022246,2]
[316048108,1709336083040,-151.0,0.00022246,7]
[316048109,1709336083064,-151.0,0.00022246,7]
[316048110,1709336083086,-214.066543,0.00022246,7]
[316048111,1709336083109,-500.0,0.00022246,2]
[316048112,1709336083133,-11280.04,0.00022246,2]
[316048113,1709336083157,-500.0,0.00022246,2]
[316048114,1709336083181,-500.0,0.00022246,2]
[316048115,1709336083205,-533.71,0.00022246,2]
[316048116,1709336083228,-960.58,0.00022246,2]
[316048117,1709336083252,-205.25,0.00022246,2]
[316048118,1709336083279,-500.0,0.00022246,2]
[316048119,1709336083302,-500.0,0.00022246,2]
[316048120,1709336083326,-338.68,0.00022246,2]
[316048121,1709336083351,-2941.98,0.00022246,2]
[316048122,1709336083374,-500.0,0.00022246,2]
[316048123,1709336083397,-500.0,0.00022246,2]
[316048124,1709336083420,-1255.39,0.00022246,2]
[316048125,1709336083444,-3267.39,0.00022246,2]
[316048126,1709336083473,-500.0,0.00022246,2]
[316048127,1709336083497,-358.199629,0.00022246,7]
[316048128,1709336083525,-523.02,0.00022246,2]
[316048129,1709336083548,-358.199629,0.00022246,7]
[316048130,1709336083570,-500.0,0.00022246,2]
[316048131,1709336083593,-682.61,0.00022246,2]
[316048132,1709336083617,-1993.8,0.00022246,2]
[316048133,1709336083642,-500.0,0.00022246,2]
[316048134,1709336083664,-500.0,0.00022246,2]
[316048135,1709336083686,-500.0,0.00022246,2]
[316048136,1709336083710,-2953.96,0.00022246,2]
[316048137,1709336083733,-539.56,0.00022246,2]
[316048138,1709336083755,-500.0,0.00022246,2]
[316048139,1709336083777,-500.0,0.00022246,2]
[316048140,1709336083800,-1705.43,0.00022246,2]
[316048141,1709336083822,-500.0,0.00022246,2]
[316048142,1709336083845,-500.0,0.00022246,2]
[316048143,1709336083867,-500.0,0.00022246,2]
[316048144,1709336083890,-500.0,0.00022246,2]
[316048145,1709336083912,-664.88,0.00022246,2]
[316048146,1709336083934,-386.32722787,0.00022246,2]
[316048147,1709336083957,-940.32,0.00022246,2]
[316048148,1709336083979,-651.33,0.00022246,2]
[316048149,1709336084002,-4272.54,0.00022246,2]
[316048150,1709336084025,-656.86,0.00022246,2]
[316048151,1709336084049,-500.0,0.00022246,2]
[316048152,1709336084073,-667.21,0.00022246,2]
[316048153,1709336084097,-1076.12,0.00022246,2]
[316048154,1709336084120,-1251.4,0.00022246,2]
[316048155,1709336084142,-500.0,0.00022246,2]
[316048156,1709336084167,-2112.85,0.00022246,2]
[316048157,1709336084190,-500.0,0.00022246,2]
[316048158,1709336084216,-595.11520929,0.00022246,2]
[316048159,1709336098226,213.01,0.00017015,2]
[316048160,1709336302444,548.52,0.00018782,2]
[316048161,1709336474078,156.87794416,0.0001879,2]
[316048162,1709336493739,-155.0,0.0001888,2]
[316048163,1709336493764,-376.39612314,0.00018881,2]
[316048164,1709336493790,-205.56938526,0.00018881,2]
[316048165,1709336493816,-482.82452134,0.00018882,2]
[316048166,1709336493843,-3351.57340589,0.00018882,2]
[316048167,1709336493869,-193.08461262,0.00018882,2]
[316048168,1709336493895,-363.90797229,0.00018883,2]
[316048169,1709336493922,-155.0,0.00018883,2]
[316048170,1709336493949,-297.47177303,0.00018884,2]
[316048171,1709336493976,-408.79186619,0.00018884,2]
[316048172,1709336494002,-339.0,0.0001889,2]
[316048173,1709336567661,151.0,0.0002686,120]
[316048174,1709336635643,1922.965454,0.00018985,2]
[316048175,1709336648809,250.0,0.000189,2]
[316048176,1709336787843,963.85381297,0.00018796,2]
[316048177,1709336807924,521.09,0.00017977,2]
[316048178,1709336906985,151.0,0.00026995,120]
[316048184,1709336989299,170.32,0.00015821,2]
[316048191,1709337032214,-2964.69771375,0.00019058,2]
[316048192,1709337032223,-205.56938526,0.00019059,2]
[316048193,1709337032232,-408.79186619,0.00019059,2]
[316048194,1709337032242,-363.90797229,0.0001906,2]
[316048195,1709337032250,-297.47177303,0.00019061,2]
[316048196,1709337032259,-702.4987408,0.00019062,2]
[316048197,1709337032270,-390.0,0.00019066,2]
[316048198,1709337032279,-211.96631915,0.0001907,2]
[316048199,1709337032288,-211.96631915,0.0001907,2]
[316048200,1709337032298,-265.44568147,0.000194,2]
[316048201,1709337032307,-150.0,0.00019452,2]
[316048202,1709337032316,-279.71,0.00019452,2]
[316048203,1709337032325,-339.0,0.0001947,2]
[316048204,1709337032334,-34936.38757734,0.00019615,2]
[316048205,1709337032343,-203.0,0.00019616,2]
[316048206,1709337032353,-499.99,0.00019616,2]
[316048207,1709337032362,-781.08554484,0.00019687,2]
[316048208,1709337032371,-150.0,0.00019731,2]
[316048209,1709337032381,-250.0,0.00019732,2]
[316048210,1709337032390,-1255.66,0.00019732,2]